[Event "*** SCC Grand Prix: Titled Tuesday Blitz"]
[Site "Chess.com"]
[Date "2020.09.08"]
[Round "4"]
[White "daro94"]
[Black "wadsy27"]
[Result "1-0"]
[WhiteElo "2959"]
[BlackElo "2553"]
[TimeControl "180+1"]
[EndTime "10:37:56 PDT"]
[Termination "daro94 won by resignation"]

1. Nf3 {[%clk 0:03:00.9]} 1... Nf6 {[%clk 0:02:58.4]} 2. b3 {[%clk 0:03:01.5]}
2... d5 {[%clk 0:02:57.9]} 3. Bb2 {[%clk 0:03:02.1]} 3... c6 {[%clk 0:02:58.6]}
4. g3 {[%clk 0:03:01.9]} 4... Bf5 {[%clk 0:02:58.9]} 5. Bg2 {[%clk 0:03:02.6]}
5... h6 {[%clk 0:02:59.3]} 6. O-O {[%clk 0:03:03.2]} 6... e6 {[%clk 0:02:59.5]}
7. c4 {[%clk 0:03:03.5]} 7... Be7 {[%clk 0:02:58.8]} 8. d3 {[%clk 0:03:03.9]}
8... Bh7 {[%clk 0:02:58]} 9. Nbd2 {[%clk 0:03:04.4]} 9... a5 {[%clk 0:02:58.1]}
10. a3 {[%clk 0:03:04.7]} 10... O-O {[%clk 0:02:57.7]} 11. Qc2 {[%clk
0:03:04.6]} 11... Nbd7 {[%clk 0:02:53.3]} 12. Bc3 {[%clk 0:03:05.1]} 12... Qb6
{[%clk 0:02:52.5]} 13. Qb2 {[%clk 0:03:05.4]} 13... Rfc8 {[%clk 0:02:51.5]} 14.
b4 {[%clk 0:03:03.7]} 14... Qa6 {[%clk 0:02:46.3]} 15. Rfc1 {[%clk 0:02:56]}
15... b5 {[%clk 0:02:36.5]} 16. c5 {[%clk 0:02:48.1]} 16... a4 {[%clk
0:02:30.2]} 17. Ne5 {[%clk 0:02:36.5]} 17... Nxe5 {[%clk 0:02:24.5]} 18. Bxe5
{[%clk 0:02:37.4]} 18... Ne8 {[%clk 0:02:21.2]} 19. e4 {[%clk 0:02:32.7]} 19...
Qb7 {[%clk 0:02:18.2]} 20. Re1 {[%clk 0:02:32.1]} 20... Qd7 {[%clk 0:02:16.4]}
21. Rad1 {[%clk 0:02:32.5]} 21... Rd8 {[%clk 0:02:06.6]} 22. exd5 {[%clk
0:02:29.5]} 22... exd5 {[%clk 0:02:06.3]} 23. Nf3 {[%clk 0:02:29.3]} 23... Bf8
{[%clk 0:01:48.7]} 24. Bd4 {[%clk 0:02:24.5]} 24... f6 {[%clk 0:01:43.4]} 25.
Re3 {[%clk 0:02:19.2]} 25... Nc7 {[%clk 0:01:43.1]} 26. Rde1 {[%clk 0:02:19.3]}
26... Re8 {[%clk 0:01:43.5]} 27. h4 {[%clk 0:02:13.5]} 27... Rxe3 {[%clk
0:01:41.4]} 28. Rxe3 {[%clk 0:02:05.6]} 28... Re8 {[%clk 0:01:41.1]} 29. Kh2
{[%clk 0:02:05.8]} 29... Rxe3 {[%clk 0:01:38.7]} 30. Bxe3 {[%clk 0:02:06.7]}
30... Bxd3 {[%clk 0:01:34.5]} 31. Nd4 {[%clk 0:02:07.1]} 31... Bf5 {[%clk
0:01:11.5]} 32. Nxf5 {[%clk 0:02:03.1]} 32... Qxf5 {[%clk 0:01:10.9]} 33. Bh3
{[%clk 0:02:04]} 33... Qe5 {[%clk 0:01:01.5]} 34. Qxe5 {[%clk 0:01:55.3]} 34...
fxe5 {[%clk 0:01:01.4]} 35. Bd7 {[%clk 0:01:56.2]} 35... d4 {[%clk 0:00:58.7]}
36. Bd2 {[%clk 0:01:55.2]} 36... Kf7 {[%clk 0:00:59]} 37. Bxc6 {[%clk
0:01:53.7]} 37... Ke6 {[%clk 0:00:59.2]} 38. Kg2 {[%clk 0:01:51.6]} 38... Be7
{[%clk 0:00:51.2]} 39. Kf3 {[%clk 0:01:50.2]} 39... h5 {[%clk 0:00:50]} 40. Ke4
{[%clk 0:01:50.1]} 40... g6 {[%clk 0:00:50]} 41. Bh6 {[%clk 0:01:38.6]} 41...
Nd5 {[%clk 0:00:48]} 42. Bxd5+ {[%clk 0:01:38.2]} 1-0

[Event "*** SCC Grand Prix: Titled Tuesday Blitz"]
[Site "Chess.com"]
[Date "2020.09.08"]
[Round "4"]
[White "Iball95"]
[Black "Sergey85Rodchenkov"]
[Result "1/2-1/2"]
[WhiteElo "2715"]
[BlackElo "2504"]
[TimeControl "180+1"]
[EndTime "10:37:56 PDT"]
[Termination "Game drawn by agreement"]

1. d4 {[%clk 0:03:00.9]} 1... Nf6 {[%clk 0:02:59.6]} 2. Nf3 {[%clk 0:03:01.1]}
2... b6 {[%clk 0:02:59.6]} 3. c4 {[%clk 0:02:58.8]} 3... Bb7 {[%clk 0:02:59.6]}
4. Nc3 {[%clk 0:02:59.1]} 4... e6 {[%clk 0:03:00]} 5. e3 {[%clk 0:02:57.5]} 5...
d5 {[%clk 0:02:59.1]} 6. Bd2 {[%clk 0:02:56]} 6... Bd6 {[%clk 0:02:59.1]} 7. Bd3
{[%clk 0:02:40.2]} 7... O-O {[%clk 0:02:58.3]} 8. O-O {[%clk 0:02:38.8]} 8... c5
{[%clk 0:02:58.3]} 9. cxd5 {[%clk 0:02:35.3]} 9... exd5 {[%clk 0:02:58]} 10. Ne5
{[%clk 0:02:27.4]} 10... Nc6 {[%clk 0:02:51.8]} 11. Nxc6 {[%clk 0:02:21]} 11...
Bxc6 {[%clk 0:02:51.4]} 12. dxc5 {[%clk 0:02:21]} 12... bxc5 {[%clk 0:02:51.2]}
13. b3 {[%clk 0:02:20.4]} 13... Rc8 {[%clk 0:02:49.6]} 14. Rc1 {[%clk
0:02:19.6]} 14... Qe7 {[%clk 0:02:49.1]} 15. Ne2 {[%clk 0:02:15.2]} 15... Rfd8
{[%clk 0:02:47.1]} 16. Ng3 {[%clk 0:02:14]} 16... Ne4 {[%clk 0:02:46.9]} 17.
Bxe4 {[%clk 0:02:08.4]} 17... dxe4 {[%clk 0:02:46.2]} 18. Qe2 {[%clk 0:02:07.3]}
18... g6 {[%clk 0:02:37.9]} 19. Rfd1 {[%clk 0:02:06]} 19... h5 {[%clk
0:02:29.9]} 20. Bc3 {[%clk 0:01:58.5]} 20... Be5 {[%clk 0:02:21.7]} 21. Bxe5
{[%clk 0:01:54.4]} 21... Qxe5 {[%clk 0:02:21.8]} 22. Nf1 {[%clk 0:01:50.4]}
22... h4 {[%clk 0:02:19.9]} 23. h3 {[%clk 0:01:47]} 23... Kg7 {[%clk 0:02:10.2]}
24. Qc2 {[%clk 0:01:42.5]} 24... Bb5 {[%clk 0:02:00.9]} 25. Rxd8 {[%clk
0:01:21.1]} 25... Rxd8 {[%clk 0:02:00.5]} 26. Nd2 {[%clk 0:01:21.1]} 26... f5
{[%clk 0:01:33.2]} 27. Qxc5 {[%clk 0:01:15.9]} 27... Qxc5 {[%clk 0:01:27.2]} 28.
Rxc5 {[%clk 0:01:16.8]} 28... Rxd2 {[%clk 0:01:19.4]} 29. Rxb5 {[%clk
0:01:16.8]} 29... Rxa2 {[%clk 0:01:19.6]} 30. Rb7+ {[%clk 0:01:13.2]} 30... Kf6
{[%clk 0:01:18.7]} 31. Rh7 {[%clk 0:01:13.3]} 31... Rb2 {[%clk 0:01:06.9]} 32.
Rxa7 {[%clk 0:01:12.1]} 32... Rxb3 {[%clk 0:01:06.7]} 33. Ra2 {[%clk 0:01:11.8]}
33... Ke5 {[%clk 0:01:03]} 34. Ra5+ {[%clk 0:01:11.5]} 1/2-1/2

[Event "*** SCC Grand Prix: Titled Tuesday Blitz"]
[Site "Chess.com"]
[Date "2020.09.08"]
[Round "4"]
[White "Matveev_Vladimir"]
[Black "StellarChessPro"]
[Result "1-0"]
[WhiteElo "2578"]
[BlackElo "2266"]
[TimeControl "180+1"]
[EndTime "10:37:56 PDT"]
[Termination "Matveev_Vladimir won by resignation"]

1. d4 {[%clk 0:03:00.9]} 1... d5 {[%clk 0:02:58.2]} 2. c4 {[%clk 0:03:01]} 2...
c6 {[%clk 0:02:58.7]} 3. Nf3 {[%clk 0:03:00.8]} 3... Nf6 {[%clk 0:02:59.3]} 4.
Qc2 {[%clk 0:03:01.1]} 4... e6 {[%clk 0:02:59.7]} 5. g3 {[%clk 0:02:59.7]} 5...
Nbd7 {[%clk 0:03:00.1]} 6. Bg2 {[%clk 0:02:59.5]} 6... Bd6 {[%clk 0:03:00.8]} 7.
O-O {[%clk 0:02:59.5]} 7... O-O {[%clk 0:03:01.3]} 8. Nfd2 {[%clk 0:02:59.8]}
8... Qe7 {[%clk 0:03:01.6]} 9. Nc3 {[%clk 0:02:59.7]} 9... a6 {[%clk 0:03:00.8]}
10. e4 {[%clk 0:02:59]} 10... dxe4 {[%clk 0:03:01.7]} 11. Ndxe4 {[%clk
0:02:59.9]} 11... Nxe4 {[%clk 0:03:02.1]} 12. Nxe4 {[%clk 0:03:00.8]} 12... Bc7
{[%clk 0:03:00]} 13. Re1 {[%clk 0:02:59.7]} 13... h6 {[%clk 0:02:57.3]} 14. Bd2
{[%clk 0:02:53.1]} 14... Nf6 {[%clk 0:02:56.4]} 15. Nc3 {[%clk 0:02:50.1]} 15...
Rd8 {[%clk 0:02:52.7]} 16. Ne2 {[%clk 0:02:16.9]} 16... e5 {[%clk 0:02:41.1]}
17. Bc3 {[%clk 0:02:13.2]} 17... e4 {[%clk 0:02:27.6]} 18. Qb3 {[%clk
0:02:00.4]} 18... e3 {[%clk 0:02:20.8]} 19. f4 {[%clk 0:01:56.1]} 19... Rb8
{[%clk 0:02:00.7]} 20. d5 {[%clk 0:01:41.7]} 20... cxd5 {[%clk 0:01:58.2]} 21.
cxd5 {[%clk 0:01:42.6]} 21... Qd6 {[%clk 0:01:43.1]} 22. Rac1 {[%clk 0:01:25.3]}
22... Bf5 {[%clk 0:01:32.3]} 23. Be5 {[%clk 0:01:24.1]} 23... Qxe5 {[%clk
0:01:28.6]} 24. fxe5 {[%clk 0:01:23.7]} 24... Bxe5 {[%clk 0:01:29.5]} 25. Qxe3
{[%clk 0:01:21.6]} 25... Bxb2 {[%clk 0:01:29.7]} 26. Rc7 {[%clk 0:01:09.7]}
26... Re8 {[%clk 0:01:28]} 27. Re7 {[%clk 0:00:57.4]} 27... Kf8 {[%clk
0:01:28.1]} 28. d6 {[%clk 0:00:55.9]} 28... Ng4 {[%clk 0:01:25.2]} 29. Qb3
{[%clk 0:00:48.7]} 1-0

[Event "*** SCC Grand Prix: Titled Tuesday Blitz"]
[Site "Chess.com"]
[Date "2020.09.08"]
[Round "4"]
[White "Bigfish1995"]
[Black "Grandelicious"]
[Result "1-0"]
[WhiteElo "3021"]
[BlackElo "2798"]
[TimeControl "180+1"]
[EndTime "10:38:00 PDT"]
[Termination "Bigfish1995 won by resignation"]

1. d4 {[%clk 0:03:00.9]} 1... d5 {[%clk 0:02:58.6]} 2. c4 {[%clk 0:03:00.9]}
2... e6 {[%clk 0:02:59.2]} 3. Nf3 {[%clk 0:03:01]} 3... a6 {[%clk 0:02:59.5]} 4.
Bg5 {[%clk 0:02:59.7]} 4... Be7 {[%clk 0:02:58.4]} 5. Bxe7 {[%clk 0:02:59.3]}
5... Nxe7 {[%clk 0:02:58.8]} 6. Nbd2 {[%clk 0:02:56.4]} 6... O-O {[%clk
0:02:57.7]} 7. g3 {[%clk 0:02:56.7]} 7... b6 {[%clk 0:02:48.9]} 8. cxd5 {[%clk
0:02:56.9]} 8... exd5 {[%clk 0:02:47.1]} 9. Bg2 {[%clk 0:02:57]} 9... Nd7 {[%clk
0:02:45.6]} 10. Rc1 {[%clk 0:02:55.9]} 10... c5 {[%clk 0:02:37.9]} 11. dxc5
{[%clk 0:02:53]} 11... bxc5 {[%clk 0:02:38.8]} 12. O-O {[%clk 0:02:53]} 12...
Bb7 {[%clk 0:02:34.7]} 13. Qa4 {[%clk 0:02:50.2]} 13... Rc8 {[%clk 0:02:29.2]}
14. Rfd1 {[%clk 0:02:46.1]} 14... Nf6 {[%clk 0:02:22.8]} 15. Nb3 {[%clk
0:02:39.6]} 15... Qb6 {[%clk 0:01:53.8]} 16. Qa3 {[%clk 0:02:36]} 16... Ne4
{[%clk 0:01:21.8]} 17. Ne5 {[%clk 0:02:34.4]} 17... Qf6 {[%clk 0:00:41.9]} 18.
Bxe4 {[%clk 0:02:29.9]} 18... Qxe5 {[%clk 0:00:42.1]} 19. Bf3 {[%clk 0:02:29.8]}
19... c4 {[%clk 0:00:40.7]} 20. Nc5 {[%clk 0:02:24.4]} 20... Bc6 {[%clk
0:00:34.5]} 21. b3 {[%clk 0:02:20.6]} 21... cxb3 {[%clk 0:00:24.9]} 22. axb3
{[%clk 0:02:20.4]} 22... Bb5 {[%clk 0:00:21.9]} 23. e3 {[%clk 0:02:20.4]} 23...
Rfd8 {[%clk 0:00:14.7]} 24. Nb7 {[%clk 0:02:20]} 24... Rxc1 {[%clk 0:00:13.9]}
25. Rxc1 {[%clk 0:02:19.9]} 25... Rb8 {[%clk 0:00:14]} 26. Nd6 {[%clk
0:02:13.8]} 26... g6 {[%clk 0:00:12.3]} 27. Nxb5 {[%clk 0:02:10.2]} 27... Rxb5
{[%clk 0:00:13.2]} 28. Be2 {[%clk 0:02:05.2]} 28... Rb6 {[%clk 0:00:12.4]} 29.
Bxa6 {[%clk 0:02:00.2]} 29... d4 {[%clk 0:00:12.6]} 30. exd4 {[%clk 0:02:00.2]}
30... Qxd4 {[%clk 0:00:13.3]} 31. Qxe7 {[%clk 0:01:53.8]} 31... Rxa6 {[%clk
0:00:13.6]} 32. Rc8+ {[%clk 0:01:54]} 32... Kg7 {[%clk 0:00:13.6]} 33. Qf8+
{[%clk 0:01:54.5]} 33... Kf6 {[%clk 0:00:14.1]} 34. Qh8+ {[%clk 0:01:55]} 1-0

[Event "*** SCC Grand Prix: Titled Tuesday Blitz"]
[Site "Chess.com"]
[Date "2020.09.08"]
[Round "4"]
[White "davidkalashian"]
[Black "LuisFSiles"]
[Result "1-0"]
[WhiteElo "2604"]
[BlackElo "2347"]
[TimeControl "180+1"]
[EndTime "10:38:00 PDT"]
[Termination "davidkalashian won by resignation"]

1. d4 {[%clk 0:03:00.9]} 1... Nf6 {[%clk 0:02:58.9]} 2. c4 {[%clk 0:02:58.6]}
2... g6 {[%clk 0:02:58.6]} 3. Nc3 {[%clk 0:02:58.4]} 3... Bg7 {[%clk 0:02:58.7]}
4. e4 {[%clk 0:02:57.9]} 4... O-O {[%clk 0:02:58.2]} 5. Be2 {[%clk 0:02:56.9]}
5... d6 {[%clk 0:02:54.4]} 6. Bg5 {[%clk 0:02:55.9]} 6... c5 {[%clk 0:02:50.8]}
7. d5 {[%clk 0:02:55.3]} 7... e6 {[%clk 0:02:45.3]} 8. Nf3 {[%clk 0:02:53.7]}
8... h6 {[%clk 0:02:39]} 9. Bf4 {[%clk 0:02:47.4]} 9... exd5 {[%clk 0:02:27.1]}
10. exd5 {[%clk 0:02:48.3]} 10... a6 {[%clk 0:02:22.1]} 11. O-O {[%clk
0:02:46.2]} 11... Re8 {[%clk 0:02:22.4]} 12. h3 {[%clk 0:02:44.7]} 12... Ne4
{[%clk 0:02:21.2]} 13. Nxe4 {[%clk 0:02:21.8]} 13... Rxe4 {[%clk 0:02:22.1]} 14.
Qd2 {[%clk 0:02:21.8]} 14... Qe7 {[%clk 0:01:44.3]} 15. Bd3 {[%clk 0:02:11.2]}
15... Rxf4 {[%clk 0:01:29.5]} 16. Qxf4 {[%clk 0:02:09.6]} 16... Bxb2 {[%clk
0:01:20.8]} 17. Rab1 {[%clk 0:01:52.3]} 17... Bg7 {[%clk 0:01:17.4]} 18. Rfe1
{[%clk 0:01:38.8]} 18... Qf8 {[%clk 0:01:10]} 19. Rb6 {[%clk 0:01:36.8]} 19...
Nd7 {[%clk 0:00:54.2]} 20. Rxd6 {[%clk 0:01:32.3]} 20... g5 {[%clk 0:00:54.4]}
21. Qg3 {[%clk 0:01:06]} 21... Ne5 {[%clk 0:00:51.6]} 22. Rxe5 {[%clk
0:00:59.9]} 22... Qxd6 {[%clk 0:00:44.8]} 23. Re8+ {[%clk 0:00:58.5]} 23... Bf8
{[%clk 0:00:43.4]} 24. Qxd6 {[%clk 0:00:57.4]} 1-0

[Event "*** SCC Grand Prix: Titled Tuesday Blitz"]
[Site "Chess.com"]
[Date "2020.09.08"]
[Round "4"]
[White "champ1000"]
[Black "THE_PLAYER6"]
[Result "0-1"]
[WhiteElo "2291"]
[BlackElo "2463"]
[TimeControl "180+1"]
[EndTime "10:38:02 PDT"]
[Termination "THE_PLAYER6 won on time"]

1. d4 {[%clk 0:03:00.9]} 1... e6 {[%clk 0:02:58.8]} 2. c4 {[%clk 0:02:58.7]}
2... c5 {[%clk 0:02:58]} 3. g3 {[%clk 0:02:51.9]} 3... cxd4 {[%clk 0:02:57.8]}
4. Bg2 {[%clk 0:02:47.3]} 4... Nc6 {[%clk 0:02:57.4]} 5. Nf3 {[%clk 0:02:45.3]}
5... e5 {[%clk 0:02:54.3]} 6. O-O {[%clk 0:02:42.3]} 6... Nf6 {[%clk 0:02:54.2]}
7. e3 {[%clk 0:02:38.9]} 7... dxe3 {[%clk 0:02:53.6]} 8. Bxe3 {[%clk 0:02:37.3]}
8... Be7 {[%clk 0:02:53.8]} 9. Nc3 {[%clk 0:02:27.3]} 9... d6 {[%clk 0:02:51.7]}
10. Nd5 {[%clk 0:02:02.5]} 10... O-O {[%clk 0:02:48.6]} 11. Qc2 {[%clk
0:01:06.5]} 11... Nxd5 {[%clk 0:02:40.6]} 12. cxd5 {[%clk 0:01:05.9]} 12... Nb8
{[%clk 0:02:41.2]} 13. Rac1 {[%clk 0:00:57.7]} 13... Nd7 {[%clk 0:02:40.2]} 14.
h4 {[%clk 0:00:30.6]} 14... Nf6 {[%clk 0:02:39.7]} 15. Rfd1 {[%clk 0:00:19]}
15... Bg4 {[%clk 0:02:39.4]} 16. Qa4 {[%clk 0:00:16.8]} 16... Bxf3 {[%clk
0:02:35.8]} 17. Bxf3 {[%clk 0:00:16.8]} 17... a6 {[%clk 0:02:34.6]} 18. Qb3
{[%clk 0:00:13]} 18... b5 {[%clk 0:02:33.8]} 19. Rc6 {[%clk 0:00:11]} 19... Qd7
{[%clk 0:02:33.4]} 20. Rdc1 {[%clk 0:00:10.6]} 20... Rfc8 {[%clk 0:02:33.9]} 21.
Bg2 {[%clk 0:00:08.3]} 21... Ng4 {[%clk 0:02:30.3]} 22. Bb6 {[%clk 0:00:05]}
22... Rcb8 {[%clk 0:02:28.5]} 23. Rc7 {[%clk 0:00:04.2]} 23... Qf5 {[%clk
0:02:28]} 24. Ba5 {[%clk 0:00:03.9]} 24... Qxf2+ {[%clk 0:02:27.4]} 25. Kh1
{[%clk 0:00:04.4]} 25... Bd8 {[%clk 0:02:26.8]} 26. R7c2 {[%clk 0:00:03.3]}
26... Bxa5 {[%clk 0:02:22.8]} 27. Rxf2 {[%clk 0:00:03.1]} 27... Nxf2+ {[%clk
0:02:23.7]} 28. Kg1 {[%clk 0:00:03]} 28... Bb6 {[%clk 0:02:22.6]} 29. Kh2 {[%clk
0:00:03.5]} 29... Ng4+ {[%clk 0:02:22.5]} 30. Kh1 {[%clk 0:00:03.9]} 30... Nf2+
{[%clk 0:02:22.9]} 31. Kh2 {[%clk 0:00:04.5]} 31... Rc8 {[%clk 0:02:22.3]} 32.
Rxc8+ {[%clk 0:00:02.9]} 32... Rxc8 {[%clk 0:02:23.2]} 33. Bh3 {[%clk 0:00:03]}
33... Rc1 {[%clk 0:02:19.8]} 34. Kg2 {[%clk 0:00:02.6]} 34... h5 {[%clk
0:02:17.9]} 35. a4 {[%clk 0:00:02.4]} 35... e4 {[%clk 0:02:14]} 36. axb5 {[%clk
0:00:02.5]} 36... a5 {[%clk 0:02:14.3]} 37. Bf5 {[%clk 0:00:02.1]} 37... e3
{[%clk 0:02:14.4]} 0-1

[Event "*** SCC Grand Prix: Titled Tuesday Blitz"]
[Site "Chess.com"]
[Date "2020.09.08"]
[Round "4"]
[White "talyamania"]
[Black "IngOscarArdila"]
[Result "1-0"]
[WhiteElo "2340"]
[BlackElo "2185"]
[TimeControl "180+1"]
[EndTime "10:38:02 PDT"]
[Termination "talyamania won by resignation"]

1. e4 {[%clk 0:03:00.9]} 1... e5 {[%clk 0:02:56.8]} 2. Nf3 {[%clk 0:03:00.7]}
2... Nf6 {[%clk 0:02:57]} 3. Nxe5 {[%clk 0:03:00]} 3... d6 {[%clk 0:02:57]} 4.
Nf3 {[%clk 0:02:59.7]} 4... Nxe4 {[%clk 0:02:57.4]} 5. d4 {[%clk 0:03:00.3]}
5... Be7 {[%clk 0:02:56.9]} 6. Bd3 {[%clk 0:03:00.2]} 6... Nf6 {[%clk
0:02:57.1]} 7. O-O {[%clk 0:03:00.7]} 7... O-O {[%clk 0:02:57.6]} 8. h3 {[%clk
0:03:00.6]} 8... Nbd7 {[%clk 0:02:58.2]} 9. c4 {[%clk 0:02:59.5]} 9... Re8
{[%clk 0:02:58.7]} 10. Nc3 {[%clk 0:02:59.1]} 10... Nf8 {[%clk 0:02:59.2]} 11.
d5 {[%clk 0:02:51.6]} 11... N8d7 {[%clk 0:02:55.1]} 12. Re1 {[%clk 0:02:47.5]}
12... Nc5 {[%clk 0:02:54.6]} 13. Bc2 {[%clk 0:02:44.8]} 13... a5 {[%clk
0:02:54.2]} 14. Bf4 {[%clk 0:02:41.8]} 14... Bd7 {[%clk 0:02:50.2]} 15. Qd2
{[%clk 0:02:38.7]} 15... Bf8 {[%clk 0:02:47.1]} 16. Bg5 {[%clk 0:02:33.6]} 16...
h6 {[%clk 0:02:38.7]} 17. Rxe8 {[%clk 0:02:32.7]} 17... Bxe8 {[%clk 0:02:38.3]}
18. Be3 {[%clk 0:02:29.7]} 18... Nfd7 {[%clk 0:02:30.5]} 19. Re1 {[%clk
0:02:21.4]} 19... Be7 {[%clk 0:02:28.2]} 20. Nd4 {[%clk 0:02:18]} 20... Bf6
{[%clk 0:02:25.2]} 21. Nf5 {[%clk 0:02:15.7]} 21... Ne5 {[%clk 0:02:14.6]} 22.
b3 {[%clk 0:01:58.5]} 22... Bd7 {[%clk 0:02:11]} 23. Bxc5 {[%clk 0:01:39.5]}
23... dxc5 {[%clk 0:02:10.1]} 24. Ng3 {[%clk 0:01:36.4]} 24... a4 {[%clk
0:01:45.9]} 25. Nce4 {[%clk 0:01:34.7]} 25... axb3 {[%clk 0:01:42.7]} 26. axb3
{[%clk 0:01:34.4]} 26... Ra2 {[%clk 0:01:32]} 27. Nxf6+ {[%clk 0:01:18.4]} 27...
Qxf6 {[%clk 0:01:31.6]} 28. Bh7+ {[%clk 0:01:17.7]} 28... Kxh7 {[%clk
0:01:32.1]} 29. Qxa2 {[%clk 0:01:17.6]} 29... g6 {[%clk 0:01:24.7]} 30. Qe2
{[%clk 0:01:13.8]} 30... Nf3+ {[%clk 0:00:49.1]} 31. Qxf3 {[%clk 0:01:11.3]}
31... Qxf3 {[%clk 0:00:48.5]} 32. gxf3 {[%clk 0:01:11.3]} 32... Bxh3 {[%clk
0:00:49.4]} 33. Re7 {[%clk 0:01:10.5]} 1-0

[Event "*** SCC Grand Prix: Titled Tuesday Blitz"]
[Site "Chess.com"]
[Date "2020.09.08"]
[Round "4"]
[White "novocane"]
[Black "TudorAnton"]
[Result "0-1"]
[WhiteElo "2302"]
[BlackElo "2563"]
[TimeControl "180+1"]
[EndTime "10:38:13 PDT"]
[Termination "TudorAnton won on time"]

1. d4 {[%clk 0:03:00.5]} 1... g6 {[%clk 0:03:00.9]} 2. e4 {[%clk 0:02:58.7]}
2... Bg7 {[%clk 0:02:49.9]} 3. f3 {[%clk 0:02:56.6]} 3... c6 {[%clk 0:02:47.2]}
4. c3 {[%clk 0:02:49.4]} 4... d5 {[%clk 0:02:45.4]} 5. e5 {[%clk 0:02:46.5]}
5... h5 {[%clk 0:02:42.9]} 6. f4 {[%clk 0:02:39.1]} 6... Nh6 {[%clk 0:02:36.6]}
7. Nf3 {[%clk 0:02:37.2]} 7... Bg4 {[%clk 0:02:35]} 8. Be2 {[%clk 0:02:36]} 8...
Nf5 {[%clk 0:02:34.5]} 9. O-O {[%clk 0:02:34.9]} 9... e6 {[%clk 0:02:34.5]} 10.
Qd3 {[%clk 0:02:09.9]} 10... Nd7 {[%clk 0:02:26.9]} 11. Be3 {[%clk 0:02:09.6]}
11... Nxe3 {[%clk 0:02:21.2]} 12. Qxe3 {[%clk 0:02:09.2]} 12... Qb6 {[%clk
0:02:20.3]} 13. Nbd2 {[%clk 0:01:58.4]} 13... Bh6 {[%clk 0:02:13.3]} 14. h3
{[%clk 0:01:53.4]} 14... Bxf3 {[%clk 0:02:08.5]} 15. Nxf3 {[%clk 0:01:53]} 15...
c5 {[%clk 0:02:08.3]} 16. dxc5 {[%clk 0:01:33.6]} 16... Nxc5 {[%clk 0:02:02.7]}
17. Nd4 {[%clk 0:01:29]} 17... Ne4 {[%clk 0:01:58.7]} 18. Bb5+ {[%clk
0:01:18.3]} 18... Kf8 {[%clk 0:01:57.9]} 19. Kh2 {[%clk 0:01:09.5]} 19... h4
{[%clk 0:01:55.8]} 20. Bd3 {[%clk 0:01:03.6]} 20... Ng3 {[%clk 0:01:53.6]} 21.
Rf3 {[%clk 0:00:36.5]} 21... Qxb2 {[%clk 0:01:48]} 22. Rb1 {[%clk 0:00:25.8]}
22... Qxc3 {[%clk 0:01:47.6]} 23. Rxb7 {[%clk 0:00:25.7]} 23... Nf5 {[%clk
0:01:44.9]} 24. Bxf5 {[%clk 0:00:15.7]} 24... Qxe3 {[%clk 0:01:40.2]} 25. Bxg6
{[%clk 0:00:03.7]} 25... Bxf4+ {[%clk 0:01:39]} 0-1

[Event "*** SCC Grand Prix: Titled Tuesday Blitz"]
[Site "Chess.com"]
[Date "2020.09.08"]
[Round "4"]
[White "Susal_De_Silva"]
[Black "JonahWillow"]
[Result "1-0"]
[WhiteElo "2502"]
[BlackElo "2681"]
[TimeControl "180+1"]
[EndTime "10:38:15 PDT"]
[Termination "Susal_De_Silva won on time"]

1. e4 {[%clk 0:03:00.9]} 1... c5 {[%clk 0:03:00]} 2. Nf3 {[%clk 0:03:01]} 2...
Nc6 {[%clk 0:02:59.5]} 3. Bb5 {[%clk 0:03:01.4]} 3... g6 {[%clk 0:02:59.7]} 4.
Bxc6 {[%clk 0:03:00.8]} 4... dxc6 {[%clk 0:03:00.6]} 5. d3 {[%clk 0:03:00.9]}
5... Bg7 {[%clk 0:03:00.9]} 6. h3 {[%clk 0:03:01.6]} 6... e5 {[%clk 0:03:00.2]}
7. O-O {[%clk 0:03:01.9]} 7... Ne7 {[%clk 0:03:00.2]} 8. Nc3 {[%clk 0:03:02.4]}
8... h6 {[%clk 0:02:56.5]} 9. Be3 {[%clk 0:03:00.6]} 9... b6 {[%clk 0:02:56.7]}
10. a4 {[%clk 0:03:01.2]} 10... a5 {[%clk 0:02:53.2]} 11. Nh2 {[%clk 0:03:01]}
11... g5 {[%clk 0:02:52.7]} 12. g4 {[%clk 0:02:59.9]} 12... O-O {[%clk
0:02:52.3]} 13. Ne2 {[%clk 0:02:59.7]} 13... Ng6 {[%clk 0:02:52.7]} 14. Ng3
{[%clk 0:02:59.3]} 14... Nf4 {[%clk 0:02:52.2]} 15. Nf5 {[%clk 0:02:47.4]} 15...
Nxh3+ {[%clk 0:02:48.2]} 16. Kg2 {[%clk 0:02:47.3]} 16... Nf4+ {[%clk
0:02:47.6]} 17. Bxf4 {[%clk 0:02:47.8]} 17... exf4 {[%clk 0:02:47.8]} 18. Nf3
{[%clk 0:02:45.8]} 18... Bxf5 {[%clk 0:02:42.4]} 19. exf5 {[%clk 0:02:46.7]}
19... Bxb2 {[%clk 0:02:42.7]} 20. Rb1 {[%clk 0:02:45.8]} 20... Bg7 {[%clk
0:02:41.6]} 21. Nd2 {[%clk 0:02:37]} 21... Rb8 {[%clk 0:02:38.7]} 22. Ne4 {[%clk
0:02:35.2]} 22... Re8 {[%clk 0:02:31.7]} 23. Qf3 {[%clk 0:02:35]} 23... Qd4
{[%clk 0:02:26.9]} 24. Rh1 {[%clk 0:02:30.7]} 24... c4 {[%clk 0:02:09.4]} 25. f6
{[%clk 0:02:20.3]} 25... cxd3 {[%clk 0:02:09.5]} 26. cxd3 {[%clk 0:02:18.1]}
26... Bf8 {[%clk 0:01:26.5]} 27. Rh5 {[%clk 0:02:15.1]} 27... Qd5 {[%clk
0:01:15.3]} 28. Rbh1 {[%clk 0:02:12.9]} 28... Re5 {[%clk 0:01:12.3]} 29. Rxh6
{[%clk 0:01:56.8]} 29... Bxh6 {[%clk 0:01:00.9]} 30. Rxh6 {[%clk 0:01:57.7]}
30... Rxe4 {[%clk 0:00:31.2]} 31. dxe4 {[%clk 0:01:55.7]} 31... Qe6 {[%clk
0:00:28.1]} 32. Qh3 {[%clk 0:01:49.9]} 32... Qxe4+ {[%clk 0:00:27.9]} 33. Kh2
{[%clk 0:01:49.8]} 1-0